Cogmind - Beta 14 @@@ ROGUE MODE // 2024.10.20 @ 17:09:04 Player: WazdakkaGutsmek Result: Self-destructed Performance ------------- Evolutions (2) 1000 Regions Visited (5) 1000 Robots Destroyed (32) 160 Value Destroyed (810) 810 Prototype IDs (26) 520 Alien Tech Used (0) 0 Bonus (300) 300 TOTAL SCORE: 3790 Bonus ------- Aligned with FarCom 300 Cogmind --------- Core Integrity 300/550 Matter 277/300 Energy 15/100 System Corruption 0% Temperature Cool (0) Movement Walking (120) Location -8/Materials Parts ------- > --- POWER (1) -------- (None) > --- PROPULSION (4) --- Aluminum Leg Carbon-fiber Leg Carbon-fiber Leg > --- UTILITY (4) ------ Hacking Suite Hacking Suite System Shield > --- WEAPON (2) ------- Heavy Laser Assault Rifle > --- INVENTORY (5) ---- Compact Matter Pod (150) Skeleton Box Grenade Launcher Heavy Mace Peak State ------------ > --- POWER ------------ (None) > --- PROPULSION ------- Aluminum Leg Carbon-fiber Leg Carbon-fiber Leg > --- UTILITY ---------- Improved Heat Sink Hacking Suite Hacking Suite System Shield > --- WEAPON ----------- Heavy Laser Assault Rifle > --- INVENTORY -------- Compact Matter Pod Skeleton Box Grenade Launcher Heavy Mace [Rating: 25] Favorites ----------- Power Light Ion Engine Engine Light Ion Engine Propulsion Flight Unit Treads Light Treads Leg Aluminum Leg Wheel Wheel Flight Unit Flight Unit Utility Hacking Suite Device Improved Heat Sink Storage Medium Storage Unit Hackware Hacking Suite Protection Light Armor Plating Weapon Assault Rifle Energy Gun Medium Laser Ballistic Gun Assault Rifle Impact Weapon Heavy Mace Build | -11 -10 -10 -10 -9 -8 ------- Run | Yrd Mat Min Exi Min Mat Slots Evolved 4 | . . . . . 4 Power . | . . . . . . Propulsion 2 | . . . . . 2 Utility 2 | . . . . . 2 Weapon . | . . . . . . Parts Attached 28 | . 8 1 . . 19 Power 2 | . . 1 . . 1 Engine 2 | . . 1 . . 1 Core . | . . . . . . Reactor . | . . . . . . Propulsion 10 | . 3 . . . 7 Treads 4 | . . . . . 4 Leg 3 | . . . . . 3 Wheel 1 | . 1 . . . . Hover . | . . . . . . Flight 2 | . 2 . . . . Utility 9 | . 3 . . . 6 Device 3 | . . . . . 3 Storage 2 | . 2 . . . . Processor . | . . . . . . Hackware 3 | . . . . . 3 Protection 1 | . 1 . . . . Artifact . | . . . . . . Weapon 7 | . 2 . . . 5 Energy Gun 4 | . 1 . . . 3 Energy Cannon . | . . . . . . Ballistic Gun 2 | . 1 . . . 1 Ballistic Cannon . | . . . . . . Launcher . | . . . . . . Special Weapon . | . . . . . . Impact Weapon 1 | . . . . . 1 Slashing Weapon . | . . . . . . Piercing Weapon . | . . . . . . Special Melee Weapon . | . . . . . . Unidentified Prototypes 1 | . . . . . 1 Parts Lost 12 | . 4 . . . 8 Power 2 | . 1 . . . 1 Propulsion 7 | . 2 . . . 5 Utility 1 | . . . . . 1 Weapon 2 | . 1 . . . 1 Highest Loss Streak 4 | . 3 . . . 4 To Critical Strikes . | . . . . . . Average Slot Usage (%) 72 | . 77 57 57 57 73 Engine 5 | . 10 . . . . Treads 4 | . . . . . 9 Leg 10 | . 22 . . . 1 Flight 8 | . 2 28 28 28 10 Device 3 | . . . . . 7 Storage 6 | . 13 . . . . Hackware 10 | . . . . . 25 Protection 1 | . 2 . . . . Energy Gun 9 | . 11 14 14 14 7 Ballistic Gun 11 | . 13 14 14 14 7 Impact Weapon 1 | . . . . . 2 Peak Build Rating 25 | 6 7 6 6 6 25 Average Rating 11 | 6 5 5 5 5 19 On Entrance 5 | 6 6 5 5 6 6 Naked Turns . | . . . . . . Heaviest Build 22 | 12 22 4 4 4 9 Greatest Support 42 | 20 20 8 8 8 42 Greatest Overweight (x) 4 | . 4 . . . 1 Average Overweight (x) . | . . . . . . Largest Inventory Capacity 10 | 8 10 5 5 5 5 Average Capacity 7 | 8 9 5 5 5 5 Most Carried 10 | 6 10 5 5 5 5 Average Carried 6 | 6 7 4 4 4 4 Final Capacity 8 | 8 5 5 5 5 5 Final Carried 6 | 6 5 5 5 5 4 Class Distribution -------------------- 60% | Mutant 39% | Hacker-Mutant Dominant Class ---------------- Mutant | -10/Materials Mutant | -10/Mines Mutant | -10/Exiles Mutant | -9/Mines Hacker-Mutant | -8/Materials Resources | -11 -10 -10 -10 -9 -8 ----------- Run | Yrd Mat Min Exi Min Mat Matter Collected 903 | 215 215 58 . 23 392 Remotely . | . . . . . . Salvage Created 1211 | . 522 . . . 689 Parts 50 | . 32 . . . 18 Haulers Intercepted 1 | . 1 . . . . Recyclers Shooed 1 | . . . . . 1 Parts Field Recycled . | . . . . . . Retrieved Matter . | . . . . . . Parts Self-Destructed . | . . . . . . Prevented . | . . . . . . Kills | -11 -10 -10 -10 -9 -8 ------- Run | Yrd Mat Min Exi Min Mat Combat Hostiles Destroyed 18 | . 10 . . . 8 Melee 2 | . . . . . 2 Guns 14 | . 9 . . . 5 AOE 1 | . 1 . . . . Classes Destroyed 10 | . 6 . . . 4 Worker 5 | . 1 . . . 4 Builder 1 | . . . . . 1 Tunneler 1 | . . . . . 1 Hauler 1 | . 1 . . . . Recycler 2 | . . . . . 2 Operator 1 | . 1 . . . . Watcher 3 | . 3 . . . . Swarmer 2 | . 2 . . . . Grunt 15 | . 8 . . . 7 Sentry 1 | . . . . . 1 Best Kill Streak 9 | . 9 . . . 5 Combat Bots Only 6 | . 6 . . . 2 Max Kills in Single Turn 4 | . 4 . . . 1 Gunslinging . | . . . . . . Exploded 1 | . 1 . . . . Melee 1 | . . . . . 1 Uniques/NPCs Destroyed . | . . . . . . Combat | -11 -10 -10 -10 -9 -8 -------- Run | Yrd Mat Min Exi Min Mat Hostile Shots Fired 161 | . 70 4 . 2 85 Missed 40 | . 16 3 . 2 19 Damage Taken 1759 | . 673 10 . . 1076 Core 391 | . 141 . . . 250 Absorbed by Shields . | . . . . . . Core Remaining (%) 71 | 100 . . . 43 . Volleys Fired 107 | 5 61 . . . 41 Largest 2 | 2 2 . . . 2 Hottest 89 | 70 85 . . . 89 Shots Fired 185 | 10 95 . . . 80 Gun 185 | 10 95 . . . 80 Cannon . | . . . . . . Launcher . | . . . . . . Special . | . . . . . . Kinetic 101 | 5 56 . . . 40 Thermal 80 | 5 39 . . . 36 Explosive . | . . . . . . Electromagnetic 4 | . . . . . 4 Robot Hit Streak 9 | 5 8 . . . 9 Robot Miss Streak 5 | 2 5 . . . 4 Penetration Max . | . . . . . . Secondary Targets . | . . . . . . Shots Hit Robots 133 | 7 55 . . . 71 Core Hits 51 | 1 27 . . . 23 Critical Kills 3 | . 3 . . . . Critical Parts Destroyed 2 | . . . . . 2 Critical Strikes 8 | 1 5 . . . 2 Burn 3 | 1 2 . . . . Destroy 3 | . 3 . . . . Smash 2 | . . . . . 2 Melee Attacks 24 | . . . . . 24 Impact 24 | . . . . . 24 Slashing . | . . . . . . Piercing . | . . . . . . Sneak Attacks 3 | . . . . . 3 Combat Hostiles . | . . . . . . Follow-up Attacks . | . . . . . . Damage Inflicted 2657 | 86 913 . . . 1658 Guns 1516 | 86 618 . . . 812 Cannons . | . . . . . . Explosions 295 | . 295 . . . . Melee 846 | . . . . . 846 Ramming . | . . . . . . Kinetic 753 | 49 390 . . . 314 Thermal 741 | 37 289 . . . 415 Explosive . | . . . . . . Electromagnetic 317 | . 234 . . . 83 Impact 846 | . . . . . 846 Slashing . | . . . . . . Piercing . | . . . . . . Highest Corruption . | . . . . . . Average Corruption . | . . . . . . Corruption Purged . | . . . . . . Corruption Blocked . | . . . . . . Overload Shots . | . . . . . . Overflow Damage 258 | . 14 . . . 244 Projectiles . | . . . . . . Explosions 14 | . 14 . . . . Melee 244 | . . . . . 244 Knockbacks 4 | . . . . . 4 Impact 4 | . . . . . 4 Kinetic . | . . . . . . Secondary . | . . . . . . Self-Inflicted Damage 51 | . 51 . . . . Shots 3 | . 3 . . . . Rammed . | . . . . . . Targets Rammed . | . . . . . . Kicked . | . . . . . . Crushed . | . . . . . . Highest Temperature 269 | 45 269 . . . 14 Average Temperature 64 | 23 74 . . . 7 Received Heat Transfer 828 | . 297 . . . 531 Effects 1 | . 1 . . . . Interference 1 | . 1 . . . . Siege Activations . | . . . . . . Robots Corrupted 6 | . . . . . 6 Combat Hostiles 1 | . . . . . 1 Parts Fried 10 | . . . . . 10 Impact Corruptions 13 | . . . . . 13 Robots Melted . | . . . . . . Combat Hostiles . | . . . . . . Parts Melted 1 | . 1 . . . . Heat Transferred 1987 | 185 914 . . . 888 Parts Sabotaged . | . . . . . . Parts Stolen . | . . . . . . Parts Stripped . | . . . . . . Power Chain Reactions 1 | . 1 . . . . Alert | -11 -10 -10 -10 -9 -8 ------- Run | Yrd Mat Min Exi Min Mat Peak Influence 229 | . 229 43 . 60 223 Initial 43 | . . 43 . . 23 Average 76 | . 58 43 . 28 106 Maximum Alert Level 1 | . 1 . . . 1 Low Security (%) 87 | 100 91 100 . 100 81 Level 1 12 | . 8 . . . 18 Level 2 . | . . . . . . Level 3 . | . . . . . . Level 4 . | . . . . . . Level 5 . | . . . . . . High Security . | . . . . . . Max Security . | . . . . . . Squads Dispatched 5 | . 3 . . . 2 Investigation 3 | . 1 . . . 2 Extermination . | . . . . . . Reinforcement 2 | . 2 . . . . Assault . | . . . . . . Garrison . | . . . . . . Intercept . | . . . . . . Searches Triggered . | . . . . . . Construction Impeded . | . . . . . . Haulers Reinforced . | . . . . . . Active Scanning Responses . | . . . . . . Cargo Convoy Interrupts . | . . . . . . Stealth | -11 -10 -10 -10 -9 -8 --------- Run | Yrd Mat Min Exi Min Mat Distress Signals 5 | . 3 . . . 2 Communications Jammed . | . . . . . . Distress Signals . | . . . . . . Times Spotted 55 | . 20 17 . 3 15 Peak Tracking Total 20 | . 7 20 . 3 4 Tactical Retreats 6 | . . . . 1 5 Traps | -11 -10 -10 -10 -9 -8 ------- Run | Yrd Mat Min Exi Min Mat Traps Triggered 1 | . 1 . . . . Indirectly . | . . . . . . Trap Hack Attempts . | . . . . . . Triggered . | . . . . . . Disarmed . | . . . . . . Reprogrammed . | . . . . . . Reused 3 | . . . . 3 . Traps Extracted . | . . . . . . Installed 3 | . . . . 3 . Triggered 4 | . . . . 3 1 Machines | -11 -10 -10 -10 -9 -8 ---------- Run | Yrd Mat Min Exi Min Mat Machines Disabled 2 | . 2 . . . . Max in Single Turn 2 | . 2 . . . . Machines Repaired . | . . . . . . Machines Dismantled . | . . . . . . Machines Sabotaged . | . . . . . . Overloaded Fab Kills . | . . . . . . Hacking | -11 -10 -10 -10 -9 -8 --------- Run | Yrd Mat Min Exi Min Mat Machines Accessed 6 | . 3 . 1 . 2 Terminals 5 | . 3 . . . 2 Fabricators . | . . . . . . Repair Stations . | . . . . . . Recycling Units . | . . . . . . Scanalyzers . | . . . . . . Garrison Access . | . . . . . . Total Hacks 17 | . 7 . 1 . 9 Successful 12 | . 4 . 1 . 7 Failed 5 | . 3 . . . 2 Catastrophic . | . . . . . . Database Lockouts . | . . . . . . Manual 10 | . 7 . 1 . 2 Terminals 16 | . 7 . . . 9 Fabricators . | . . . . . . Repair Stations . | . . . . . . Recycling Units . | . . . . . . Scanalyzers . | . . . . . . Garrison Access . | . . . . . . Terminal Hacks 7 | . 1 . 1 . 5 Prototype ID Bank 1 | . . . . . 1 Emergency Access Points 1 | . . . . . 1 Alert Level 1 | . . . . . 1 Unreport Threat 3 | . 1 . . . 2 Derelict Proto ID Bank 1 | . . . 1 . . Fabricator Hacks . | . . . . . . Repair Station Hacks . | . . . . . . Recycling Unit Hacks . | . . . . . . Scanalyzer . | . . . . . . Garrison Access Hacks . | . . . . . . Unauthorized Hacks 5 | . 3 . . . 2 Terminals 5 | . 3 . . . 2 Botnet 2 | . 1 . . . 1 Skim 3 | . 2 . . . 1 Fabricators . | . . . . . . Repair Stations . | . . . . . . Recycling Units . | . . . . . . Scanalyzers . | . . . . . . Garrison Access . | . . . . . . Data Cores Recovered . | . . . . . . Used . | . . . . . . Hacking Detections 4 | . 2 . . . 2 Full Trace Events . | . . . . . . Feedback Events . | . . . . . . Feedback Blocked . | . . . . . . Robot Schematics Acquired . | . . . . . . Robots Built . | . . . . . . Authchips . | . . . . . . Time . | . . . . . . Total Robot Build Rating . | . . . . . . Part Schematics Acquired . | . . . . . . Parts Built . | . . . . . . Authchips . | . . . . . . Time . | . . . . . . Total Part Build Rating . | . . . . . . Parts Repaired . | . . . . . . Time . | . . . . . . Parts Recycled . | . . . . . . Recycled Matter . | . . . . . . Retrieved Matter . | . . . . . . Retrieved Components . | . . . . . . Parts Scanalyzed . | . . . . . . Part Schematics Acquired . | . . . . . . Parts Damaged . | . . . . . . Bothacking | -11 -10 -10 -10 -9 -8 ------------ Run | Yrd Mat Min Exi Min Mat Used RIF Installer . | . . . . . . Robots Hacked . | . . . . . . Non-combat . | . . . . . . Combat . | . . . . . . Robot Hacks Applied . | . . . . . . Relay Couplers Released . | . . . . . . Fabnet Peak Effective % . | . . . . . . Robots Rewired . | . . . . . . Allies Hacked . | . . . . . . Hacks Repelled . | . . . . . . Allies | -11 -10 -10 -10 -9 -8 -------- Run | Yrd Mat Min Exi Min Mat Total Allies 4 | . . 4 . . . Largest Group 4 | . . 4 . . . Highest-Rated Group 71 | . . 71 . . . Highest-Rated Ally 31 | . . 31 . . . Total Orders . | . . . . . . Ally Attacks . | . . . . . . Total Damage . | . . . . . . Kills . | . . . . . . Allies Corrupted . | . . . . . . Allies Melted . | . . . . . . Intel | -11 -10 -10 -10 -9 -8 ------- Run | Yrd Mat Min Exi Min Mat Robot Analysis Total . | . . . . . . Derelict Logs Recovered 1 | . . 1 . . . Drone Launches . | . . . . . . Drone Recoveries . | . . . . . . Exploration | -11 -10 -10 -10 -9 -8 ------------- Run | Yrd Mat Min Exi Min Mat Turns Passed 1522 | 20 690 78 77 47 610 Spaces Moved 1178 | 5 397 132 205 114 325 Core 13 | . 1 . . . 12 Treads 135 | . . . . . 135 Legs 324 | 5 312 . . . 7 Wheels . | . . . . . . Hover . | . . . . . . Flight 706 | . 84 132 205 114 171 Fastest Speed 37 | 120 37 37 37 37 37 Average Speed 76 | 120 110 37 37 37 89 Slowest Speed 250 | 120 250 37 37 37 160 Overloaded Moves . | . . . . . . Propulsion Burnouts . | . . . . . . Robots Hopped 1 | . 1 . . . . Cave-ins Triggered . | . . . . . . Exploration Rate (%) 38 | 2 74 33 60 31 28 Regions Visited 5 Branch Regions 3 Pre-discovered Areas 1 | . . 1 . . . Known Exits Taken . | . . . . . . Unknown Exits Taken 5 | 1 1 1 1 1 . Scrap Searched 3 | . . 2 . 1 . Spaces Dug . | . . . . . . Terrain Destroyed 2 | . 2 . . . . Melee . | . . . . . . Projectile . | . . . . . . AOE 2 | . 2 . . . . Terrain Rammed . | . . . . . . Walls Destroyed . | . . . . . . Machines Disabled . | . . . . . . Actions | -11 -10 -10 -10 -9 -8 --------- Run | Yrd Mat Min Exi Min Mat Total 1572 | 9 558 161 206 118 520 Wait 212 | . 83 28 . . 101 Move 1171 | 4 394 131 204 113 325 Hop 1 | . 1 . . . . Pick Up 7 | . 4 . 1 1 1 Fast Attach 20 | . 3 . . . 17 Attach 8 | . 5 1 . . 2 Detach 4 | . 1 1 . . 2 Swap . | . . . . . . Drop 15 | . 6 . 1 1 7 Fire 107 | 5 61 . . . 41 Melee 24 | . . . . . 24 Ram . | . . . . . . Kick . | . . . . . . Crush . | . . . . . . Escape Stasis . | . . . . . . Rewire . | . . . . . . Trap 3 | . . . . 3 . Miscellaneous . | . . . . . . Route ------- -11/Scrapyard -10/Materials (discovered 3 exits: [*Mat x2] / [*Min]) -10/Mines (discovered 3 exits: [*Mat x2] / *Exi) -10/Exiles -9/Mines -8/Materials (discovered 1 exit: [*Fac]) History --------- Turn | Location | Event 1 | -11/Scrapyard | Discovered new exit (range 3) 21 | -11/Scrapyard | Entered Materials 300 | -10/Materials | Build established: Mutant 316 | -10/Materials | Discovered new exit (range 16) 547 | -10/Materials | Core integrity fell below 50% 574 | -10/Materials | Lost 3 parts (1p1n1w) 605 | -10/Materials | Discovered new exit (range 15) 705 | -10/Materials | Discovered new exit (range 15) 711 | -10/Materials | Entered Mines 714 | -10/Mines | Received a Mining Laser from a helpful Derelict 725 | -10/Mines | Discovered new exit (range 12) 739 | -10/Mines | Learned location of Storage (-7) 744 | -10/Mines | Assisted by bots powering up and referring to "LRC-V3" 777 | -10/Mines | Discovered new exit (range 13) 783 | -10/Mines | Assembled infested the area 788 | -10/Mines | Deemed a non-threat by the Exiles lab entrance 788 | -10/Mines | Discovered new exit (range 5) 789 | -10/Mines | Entered Exiles 799 | -10/Exiles | Met 8R-AWN 805 | -10/Exiles | Met EX-HEX 815 | -10/Exiles | Met EX-BIN 820 | -10/Exiles | Aligned with FarCom system 820 | -10/Exiles | Given EX-Vault access code 829 | -10/Exiles | Opened EX-Vault 831 | -10/Exiles | Found Skeleton Box 840 | -10/Exiles | Warned to stay clear of 0b10 Research branches 850 | -10/Exiles | Met EX-DEC 862 | -10/Exiles | Discovered new exit (range 14) 866 | -10/Exiles | Left Exiles lab with Skeleton Box 866 | -10/Exiles | Entered Mines 871 | -9/Mines | Found a hidden stash of uninstalled traps 897 | -9/Mines | A weapon hastily lodged in a ceiling crevice suddenly fell to the ground 901 | -9/Mines | Discovered new exit (range 9) 913 | -9/Mines | Entered Materials 913 | -8/Materials | Evolved 4 slots: Propulsion x2, Utility x2 1196 | -8/Materials | Build established: Hacker-Mutant 1274 | -8/Materials | Discovered new exit (range 10) 1523 | -8/Materials | Self-destructed Last Messages --------------- 01473_ G-47 Trooper destroyed. 01475_ Lgt. Ion Engine destroyed. 01477_ Lgt. Treads destroyed. 01482_ G-47 Trooper destroyed. 01485_ Acquired 24 matter. 01487_ Acquired Carbon-fiber Leg. 01490_ Acquired 10 matter. 01493_ Acquired Carbon-fiber Leg. 01494_ Acquired 10 matter. 01496_ Dropped Imp. Medium Laser. 01497_ Acquired Hvy. Laser. 01498_ Acquired 10 matter. 01500_ W-25 Informer sends out distress signal. 01501_ Acquired 3 matter. 01504_ Acquired Aluminum Leg. 01507_ Imp. Heat Sink destroyed. 01510_ Penetrated by Slug. 01517_ G-47 Trooper misfires. 01519_ Penetrated by Slug. [Achievement: Back For More] Map ----- +----------------------------------------------------+ | ?????????????????? #?????????????????????????? | | ?????????????##### ##########????????????????? | | ???????## #### ???????????????? | | ?????# ???????????????? | | ?????? ####### ???????????????? | | ?????? ???#######+##########???????????????????? | | ?????? ???# """ #??????????????????????????? | | ?????? ???# "T" #????????????????????????### | | ?????? ???# ! #???????????????????????## | | ?????? ???# """ """ #???????????????????????? | | ?????# #??# """ """ #???????????????????????? | | ?????# #??# """ """ #????????????????????????? | | ?????# #??# #????????????????????????? | | ?????# #??# ] #?????????????????######### | | ?????# ########+#####?????????????????# ! ## | | ?????# # #????????????????????#% ## | | #""??# # #??????????????##????# "" ## | | #"T # # #???????####### ##???# S"" !## | | #"" + + #???????# "T" #???# " ## | | #"" # # #???????# #???#% ## | | # ??# # #???????# ########+### | | ?????# # #???????# ## ! | | ?????# # #??###### ! ## | | ??+??# #####+######## !#= ## """ | | ?????# h [ #!!!! ## % """"" | | ?????# tg w @%;%!!! ## """"" | | ?#######+############ # !!! ## """" | | ?# #??????###### %############ "" | | ?#""" #??????#/ /[# | | ?#""" #??????#// + / | | ?#"S ########// # T % | | ?#""" #! # # ####+# | | ?# "" # """#! + % + | | ?# # """# # #### """ | | ?# # """# = # ###+####+##### """ | | ?# + =###### """ #?# ## """ | | ?# # = #???## """ #?# ## | | ?# ####+####### """ ### ! ## ! | | ?########## [ ## ####### | | ??????????# + """ """ #?????? | | ??????????###+####### ####### """ """ #?????? | | ??????????# #####+######### """ """ #?????? | | ??????????#[ !# # #?????? | | ??????????# """ # ###########?????? | | ??????????# """ + = #???????????????? | | ??????????# """ # ! #???????????????? | | ??????????# !# #???????????????? | | ??????????######## #???????????????? | | ?????????????????###############???????????????? | | | +----------------------------------------------------+ Best States ------------- Heat Dissipation 53 Energy Generation 10 Energy Capacity 125 Matter Stores 300 Matter Capacity 400 Sight Range 16 Terrain Scan Density 10 ECM Strength 1 Armor Coverage 150 Evasion (%) 62 Recoil Reduction 2 Offensive Hacking 20 Defensive Hacking 10 Item Schematics ----------------- None Robot Schematics ------------------ None Fabricated ------------ Nothing Alien Tech Used ----------------- None Achievements -------------- Back For More Challenges ------------ None Game ------ Seed WaveExperimentalMace Manual? 0 Play Time 00:15:03 Cumulative 49.9 hours Start 2024.10.20 @ 05:32:24 End 2024.10.20 @ 17:09:04 Sessions 3 Manual Loads 0 Difficulty Rogue Special Mode None Game No. 50 Rogue 32 Adventurer 16 Explorer 2 Win Type - Total 1 Types 1/0/0/0/0/0/0/0/0 Lore% 13 Gallery% 40 Achievement% 35 Wizard Run 0 Options --------- Layout 2 ASCII 0 Keyboard 0 Movement Mouse Keybinds 1 Fullscreen 2 Font 24/Terminus Map View 50x44 Zoom Use 0% Tactical HUD 1 Map Filters NONE Filters NONE Steam X RUN: 903ac265-796c-4f6f-a771-56277a8dc6fe